bitfinex/quotes_ETHUSD_20251125
["timestamp","ask_amount","ask_price","bid_price","bid_amount"]
[1764099810250,0.9495,2911.7,2911.4,6.86954728]
[1764099810454,0.9495,2911.7,2911.4,3.43477364]
[1764099810656,0.9495,2911.7,2911.2,6.87001922]
[1764099810818,0.1833,2911.9,2911.2,7.79193208]
[1764099811153,0.4842,2912.2,2911.2,11.22694169]
[1764099811325,0.4842,2912.5,2911.3,0.92191286]
[1764099811521,0.1833,2912.9,2911.5,0.92191286]
[1764099811839,0.4842,2912.8,2911.7,0.92191286]
[1764099812257,0.4842,2912.8,2911.4,0.92191286]
[1764099812421,0.4842,2912.8,2911.4,1.14391286]
[1764099812756,0.72559411,2912.6,2911.5,7.09131134]
[1764099812922,0.94759411,2912.6,2911.5,3.43465567]
[1764099813125,0.4842,2912.5,2911.5,6.86931134]
[1764099813824,0.4842,2912.5,2911.5,3.43465567]
[1764099814324,0.6486,2911.6,2911.3,3.4348037]
[1764099814634,6.86718856,2912.4,2911.3,6.86969532]
[1764099814835,0.4653,2911.4,2911.0,3.43522041]
[1764099815140,0.1833,2911.5,2910.7,0.92191286]
[1764099815141,0.4653,2911.3,2910.7,0.92191286]
[1764099815469,0.1833,2910.9,2910.6,3.43571772]
[1764099815621,0.4653,2910.8,2910.6,3.43571772]
[1764099815822,0.4653,2910.7,2910.3,3.43607188]
[1764099816266,0.4842,2910.6,2910.3,3.43607188]
[1764099816625,0.4842,2910.6,2910.1,6.87261606]
[1764099816825,0.4842,2910.6,2910.1,3.43630803]
[1764099817127,0.4653,2910.2,2909.9,3.43650809]
[1764099817651,0.4653,2910.2,2909.9,6.8730523]
[1764099817854,0.9495,2910.2,2909.9,6.8730523]
[1764099818671,0.9495,2910.2,2909.8,6.87332462]
[1764099819771,0.4842,2910.1,2909.8,6.87332462]
[1764099819939,0.9495,2910.2,2909.8,6.87332462]
[1764099820140,0.4842,2910.2,2909.8,3.43666231]
[1764099820337,0.4842,2910.5,2909.8,6.87332462]
[1764099820538,0.1833,2910.9,2909.8,10.30998693]
[1764099820745,0.6675,2910.9,2909.8,10.30998693]
[1764099821152,4.10287252,2910.9,2909.8,10.30998693]
[1764099821667,3.43548165,2910.8,2909.8,6.87332462]
[1764099821872,0.4842,2910.8,2909.8,7.09532462]
[1764099822183,0.4842,2910.7,2909.8,10.53198693]
[1764099822944,0.1833,2910.9,2910.0,0.91876972]
[1764099823140,0.1833,2910.9,2910.1,0.91876972]
[1764099823342,0.4842,2911.1,2910.2,0.222]
[1764099823557,0.4842,2911.1,2910.3,0.91876972]
[1764099823945,0.4842,2911.1,2910.4,0.222]
[1764099824752,0.6675,2911.5,2910.5,10.30750728]
[1764099824952,0.6675,2911.5,2910.5,11.226277]
[1764099825160,0.6675,2911.5,2910.6,0.91876972]
[1764099825860,0.4842,2911.4,2910.5,11.226277]
[1764099826063,0.4833984,2911.4,2910.5,10.30750728]
[1764099826241,0.4833984,2911.4,2910.6,0.222]
[1764099826744,0.4833984,2911.4,2910.7,10.30679904]
[1764099827580,0.1833,2911.5,2910.7,10.30679904]
[1764099827780,0.1833,2911.5,2910.7,11.22556876]
[1764099827944,0.1833,2911.5,2910.8,0.91876972]
[1764099828286,0.4842,2911.4,2910.9,0.91876972]
[1764099828442,0.1833,2911.5,2910.8,0.91876972]
[1764099828646,0.6675,2911.5,2910.9,0.222]
[1764099828867,0.6675,2911.5,2911.0,6.87049124]
[1764099829070,0.4653,2911.1,2910.7,4.3542838]
[1764099829268,0.1833,2911.5,2910.6,3.43565939]
[1764099829269,0.6486,2910.8,2910.6,3.43565939]
[1764099829679,0.4653,2910.7,2910.5,4.35459838]
[1764099829881,0.4653,2910.6,2910.5,4.35459838]
[1764099830656,0.1833,2910.8,2910.5,4.35459838]
[1764099830963,0.6543,2910.8,2910.5,7.79043414]
[1764099831271,0.4836,2910.6,2910.5,4.35459838]
[1764099832804,0.9546,2910.6,2910.2,3.4361692]
[1764099833004,0.4836,2910.5,2910.2,6.87235915]
[1764099833313,0.9546,2910.5,2910.2,6.87235915]
[1764099833684,0.4836,2910.3,2910.2,3.4361692]
[1764099835105,0.4836,2910.3,2910.1,6.87260566]
[1764099835307,0.9546,2910.2,2909.9,4.35627193]
[1764099835513,0.4836,2910.0,2909.9,3.43750221]
[1764099836009,0.9546,2910.0,2909.9,3.43750221]
[1764099836998,0.9546,2910.0,2909.9,0.001]
[1764099838910,0.1833,2910.8,2909.9,0.001]
[1764099839075,0.471,2910.6,2909.9,0.001]
[1764099840709,0.1833,2910.8,2909.9,1.22663516]
[1764099840883,0.4686,2911.2,2910.2,0.91876972]
[1764099841083,0.4686,2911.2,2910.3,10.52921564]
[1764099841606,0.1833,2911.5,2910.5,0.91876972]
[1764099841782,0.4686,2911.4,2910.5,0.91876972]
[1764099841983,0.4686,2911.4,2910.6,0.221]
[1764099842198,0.4686,2911.4,2910.6,1.13976972]
[1764099842390,0.1833,2911.5,2910.8,0.91876972]
[1764099842584,0.1833,2911.5,2910.9,0.91876972]
[1764099842785,0.4686,2912.1,2911.2,0.91876972]
[1764099842986,0.4686,2912.5,2911.5,0.91876972]
[1764099843191,0.4686,2912.5,2911.6,1.13976972]
[1764099843511,0.4686,2912.8,2911.8,0.91876972]
[1764099843676,0.4686,2912.8,2911.4,19.01769393]
[1764099843677,0.4686,2912.8,2911.9,0.91876972]
[1764099843880,0.4686,2912.8,2912.0,0.221]
[1764099844305,0.4686,2912.8,2911.7,0.91876972]
[1764099844306,0.4652,2912.1,2911.7,0.91876972]
[1764099844508,0.4652,2912.0,2911.7,0.221]
[1764099845013,0.1991,2911.9,2911.6,6.86907542]
[1764099845404,0.4686,2911.8,2911.6,6.86907542]
[1764099845602,0.4652,2911.7,2911.5,3.43462695]
[1764099845813,0.4652,2911.6,2911.5,3.43462695]
[1764099846304,0.9338,2911.6,2911.2,3.43497818]
[1764099846477,0.4652,2911.3,2911.1,3.43510001]
[1764099846681,0.4652,2911.2,2911.0,3.43518219]
[1764099846882,0.4652,2911.1,2911.0,3.43518219]
[1764099847219,3.90033151,2911.1,2910.5,0.91976972]
[1764099847422,0.6643,2910.6,2910.5,0.001]
[1764099847724,1.1329,2910.6,2910.5,0.001]
[1764099848420,0.1991,2910.8,2910.5,6.87267152]
[1764099848714,0.4686,2911.4,2910.6,0.91876972]
[1764099849017,0.4686,2911.4,2910.5,10.30850728]
[1764099849018,0.4686,2911.4,2910.5,11.227277]
[1764099849621,0.4686,2911.4,2910.7,0.91876972]
[1764099851330,0.4686,2911.4,2910.8,6.8709633]
[1764099851697,0.4686,2911.4,2910.8,3.43548165]
[1764099851698,0.6643,2910.9,2910.8,3.43548165]
[1764099852221,1.1329,2910.9,2910.8,3.43548165]
[1764099852418,0.6643,2910.9,2910.8,3.43548165]
[1764099853030,1.1329,2910.9,2910.5,0.91976972]
[1764099853216,1.1329,2910.9,2910.5,3.43682931]
[1764099853217,0.4652,2910.6,2910.5,3.43682931]
[1764099853417,0.9338,2910.6,2910.5,0.001]
[1764099856541,0.1991,2910.9,2910.5,0.001]
[1764099857232,0.6677,2910.9,2910.5,0.001]
[1764099857434,0.1991,2910.9,2910.5,0.001]
[1764099858725,0.4686,2911.2,2910.5,0.001]
[1764099859135,0.6643,2910.6,2910.5,0.91976972]
[1764099859321,0.6643,2910.6,2910.5,0.001]
[1764099859522,0.1991,2910.9,2910.5,0.001]
[1764099859724,0.6677,2910.9,2910.5,0.001]
[1764099860457,0.4652,2910.6,2910.5,0.001]
[1764099860950,0.918,2910.6,2910.5,0.001]
[1764099862259,0.4652,2910.6,2910.5,0.001]
[1764099862455,0.6519,2910.9,2910.5,0.001]
[1764099862762,0.4528,2910.8,2910.5,0.001]
[1764099863358,0.1991,2910.9,2910.5,0.001]
[1764099863665,3.62446454,2911.7,2910.5,0.001]
[1764099863666,0.1991,2911.9,2910.8,0.0515]
[1764099863847,0.4528,2911.8,2910.8,0.0515]
[1764099864045,0.002,2911.4,2910.9,0.221]
[1764099864258,0.002,2911.4,2910.7,0.91876972]
[1764099864562,0.4528,2911.3,2910.7,0.91876972]
[1764099865334,0.002,2911.4,2910.7,1.13976972]
[1764099865733,0.6639,2910.8,2910.6,0.91876972]
[1764099865932,0.6639,2910.8,2910.6,3.43570731]
[1764099866233,0.002,2911.4,2910.6,6.87142503]
[1764099866558,0.4548,2911.4,2910.6,6.87142503]
[1764099867161,0.002,2911.4,2911.3,0.0515]
[1764099867372,0.002,2911.4,2911.2,0.91876972]
[1764099867934,0.002,2911.4,2911.3,3.43489162]
[1764099868133,0.002,2911.4,2911.3,4.35366134]
[1764099868366,0.002,2911.4,2911.3,4.40516134]
[1764099868570,0.002,2911.4,2911.3,3.53789162]
[1764099869158,0.002,2911.4,2911.3,4.76710877]
[1764099869374,0.002,2911.4,2911.3,3.53789162]
[1764099869679,0.002,2911.4,2911.3,3.48639162]
[1764099870854,0.002,2911.4,2911.3,4.58009878]
[1764099871073,0.002,2911.4,2911.3,3.65589162]
[1764099871274,0.002,2911.4,2911.3,3.70739162]
[1764099872077,0.002,2911.4,2911.3,3.75889162]
[1764099872279,0.002,2911.4,2911.3,3.70739162]
[1764099872483,0.002,2911.4,2911.3,3.75889162]
[1764099872880,0.002,2911.4,2911.3,3.70739162]
[1764099873061,0.002,2911.4,2911.3,4.93915794]
[1764099873983,0.002,2911.4,2911.3,3.65589162]
[1764099874180,0.002,2911.4,2911.3,3.43489162]
[1764099874586,0.002,2911.4,2911.3,3.65589162]
[1764099875080,0.9321,2911.4,2911.3,3.43489162]
[1764099876886,0.002,2911.4,2911.3,3.43489162]
[1764099877253,0.002,2911.4,2911.3,4.41048809]
[1764099877451,0.002,2911.4,2911.3,3.48639162]
[1764099877888,0.002,2911.4,2911.3,4.35899482]
[1764099878058,0.002,2911.4,2911.3,3.43489162]
[1764099878878,0.4793,2911.4,2911.3,3.43489162]
[1764099879078,0.9321,2911.4,2911.3,3.43489162]
[1764099880256,0.9321,2911.4,2911.0,3.65619997]
[1764099880257,0.9321,2911.4,2911.0,0.9241032]
[1764099880459,0.4773,2911.1,2911.0,3.43524562]
[1764099880875,0.9301,2911.1,2910.9,3.4353529]
[1764099881071,1.1167,2911.0,2910.9,3.4353529]
[1764099881471,0.6639,2911.0,2910.9,3.4353529]
[1764099881673,1.1167,2911.0,2910.7,3.43551181]
[1764099881886,1.1167,2911.0,2910.7,0.001]
[1764099881887,0.4773,2910.8,2910.7,0.001]
[1764099882284,0.9301,2910.8,2910.7,0.001]
[1764099885700,0.1866,2911.0,2910.7,0.001]
[1764099885876,0.4528,2911.2,2910.7,0.001]
[1764099890985,0.4753,2911.5,2910.7,0.001]
[1764099891387,0.4773,2911.4,2910.7,0.001]
[1764099892022,0.002,2911.4,2910.7,0.001]
[1764099892303,0.002,2911.4,2910.8,1.1451032]
[1764099892601,0.002,2911.4,2910.9,0.9241032]
[1764099892803,0.002,2911.4,2911.0,10.30573686]
[1764099893378,0.002,2911.4,2911.0,11.22984006]
[1764099895484,0.002,2911.4,2911.3,0.0515]
[1764099895711,0.002,2911.4,2911.3,0.2725]
[1764099897298,0.002,2911.4,2911.3,4.41137319]
[1764099897498,0.002,2911.4,2911.3,4.63237319]
[1764099898088,0.002,2911.4,2911.3,4.35987319]
[1764099898289,0.002,2911.4,2911.3,4.58087319]
[1764099898499,0.002,2911.4,2911.3,4.63237319]
[1764099898885,0.002,2911.4,2911.3,3.70739162]
[1764099899119,0.002,2911.4,2911.3,3.75889162]
[1764099899320,0.002,2911.4,2911.3,3.48639162]
[1764099899619,0.002,2911.4,2911.3,5.55708278]
[1764099900220,0.002,2911.4,2911.3,5.33608278]
[1764099900531,0.002,2911.4,2911.3,4.66818163]
[1764099900891,0.002,2911.4,2911.0,3.43524562]
[1764099900892,0.9509,2911.4,2911.0,0.92499818]
[1764099901196,0.4554,2911.1,2910.9,3.43528211]
[1764099901386,0.4554,2911.1,2910.9,4.36028029]
[1764099901591,0.4955,2911.4,2910.9,6.87064574]
[1764099901785,0.4935,2911.3,2910.9,7.79564392]
[1764099902332,0.4935,2911.3,2910.9,6.87064574]
[1764099902687,0.4554,2911.0,2910.9,3.43528211]
[1764099902892,0.9489,2911.0,2910.9,3.43528211]
[1764099903121,0.9489,2911.0,2910.7,0.92599818]
[1764099903325,0.002,2911.4,2910.7,0.92599818]
[1764099903326,0.646,2910.8,2910.7,0.001]
[1764099903697,1.1395,2910.8,2910.7,0.001]
[1764099906542,4.57498165,2910.8,2910.7,0.001]
[1764099906688,4.57498165,2910.8,2910.5,0.001]
[1764099906689,0.405504,2910.7,2910.5,0.001]
[1764099906910,0.405504,2910.7,2909.9,0.001]
[1764099906911,0.505504,2910.5,2909.9,0.001]
[1764099907155,0.505504,2910.5,2908.8,3.43783354]
[1764099907156,3.43666231,2909.8,2908.8,3.43783354]
[1764099907334,0.6263,2908.9,2908.8,3.43783354]
[1764099908249,1.1198,2908.9,2908.8,3.43783354]
[1764099908806,1.1198,2908.9,2908.5,0.001]
[1764099909007,0.4554,2908.6,2908.5,0.001]
[1764099909439,0.9489,2908.6,2908.5,0.001]
[1764099910166,0.1906,2909.2,2908.5,0.0535]
[1764099910322,0.4935,2909.8,2908.5,0.106]
[1764099910510,0.1906,2909.6,2908.6,0.0525]
[1764099910711,0.1906,2909.6,2908.7,0.221]
[1764099911212,0.1906,2909.6,2908.8,13.75137512]
[1764099911643,0.1906,2909.6,2908.8,10.31353134]
[1764099911644,0.6841,2909.6,2908.8,10.31353134]
[1764099912140,0.4935,2909.5,2908.8,10.31353134]
[1764099913241,0.1709,2910.0,2909.5,6.87403332]
[1764099913445,0.7145,2909.9,2908.7,10.31388591]
[1764099913609,0.7145,2909.9,2908.7,6.87592394]
[1764099913610,0.4554,2909.5,2908.7,6.87592394]
[1764099913941,0.4554,2909.5,2908.7,10.31388591]
[1764099914141,0.9489,2909.5,2908.7,10.31388591]
[1764099914553,0.4935,2909.4,2908.7,10.31388591]
[1764099915120,0.4554,2908.8,2908.5,0.001]
[1764099915331,0.4554,2908.6,2908.5,0.001]
[1764099915749,0.9489,2908.6,2908.5,0.001]
[1764099916642,0.4935,2909.0,2908.5,0.001]
[1764099917827,0.4935,2909.0,2908.6,0.001]
[1764099920258,0.221,2909.2,2908.6,0.001]
[1764099921846,0.1709,2910.0,2908.6,0.001]
[1764099922037,0.4527,2909.7,2908.6,0.001]
[1764099923650,3.43689854,2909.6,2908.6,0.001]
[1764099924148,0.4527,2909.5,2908.6,0.001]
[1764099924342,0.4519,2908.7,2908.6,0.001]
[1764099924741,0.9046,2908.7,2908.6,0.001]
[1764099925783,0.221,2909.3,2908.6,0.0535]
[1764099927040,0.6737,2909.3,2908.6,0.001]
[1764099927448,0.4527,2909.2,2908.6,0.001]
[1764099927935,0.221,2909.3,2908.6,0.001]
[1764099928139,0.4527,2909.5,2908.6,0.001]
[1764099929771,0.4527,2909.5,2908.6,10.31524051]
[1764099929975,0.6236,2910.0,2908.7,0.0525]
[1764099931250,0.6236,2910.0,2908.7,2.01138412]
[1764099931454,3.43787006,2910.5,2909.0,0.72559411]
[1764099931455,0.002,2910.5,2909.0,0.72559411]
[1764099931649,0.002,2910.5,2909.2,13.74948436]
[1764099931969,0.002,2910.5,2909.2,18.42014546]
[1764099932171,0.002,2910.5,2909.3,1.28579001]
[1764099932351,0.002,2910.5,2909.4,0.0525]
[1764099932782,0.4527,2910.4,2909.3,1.23329001]
[1764099932984,0.4527,2910.4,2909.2,14.98277437]
[1764099933148,0.4527,2910.4,2909.2,11.54540328]
[1764099933354,0.4527,2910.4,2909.2,10.31211327]
[1764099933974,7.1887091,2910.3,2909.2,6.87474218]
[1764099934174,0.31656534,2910.2,2909.2,6.87474218]
[1764099934352,0.76926534,2910.2,2909.2,6.87474218]
[1764099934554,0.31656534,2910.1,2909.2,6.87474218]
[1764099934762,0.1988,2909.3,2909.2,3.43737109]
[1764099936286,0.1988,2909.3,2908.8,6.87568756]
[1764099936485,3.65645291,2910.0,2909.2,0.0525]
[1764099936486,0.1988,2909.9,2909.2,0.0525]
[1764099936657,0.31717942,2909.8,2909.2,0.0525]
[1764099936852,0.31717942,2909.8,2908.8,11.54682135]
[1764099937059,0.4527,2909.7,2908.8,11.54682135]
[1764099937657,0.4527,2909.7,2908.8,8.32997757]
[1764099937859,0.4527,2909.7,2908.8,8.10897757]
[1764099938102,0.4527,2909.7,2908.8,6.87568756]
[1764099938670,0.6515,2909.9,2908.8,11.59932135]
[1764099938869,0.31713813,2909.8,2908.8,11.59932135]
[1764099939793,0.76983813,2909.8,2908.8,11.59932135]
[1764099940089,0.76983813,2909.8,2908.8,6.87568756]
[1764099940090,0.31743635,2909.7,2908.8,6.87568756]
[1764099940278,0.77013635,2909.7,2908.8,6.87568756]
[1764099940487,0.4527,2909.7,2908.8,6.87568756]
[1764099940798,0.4519,2908.9,2908.7,4.6711925]
[1764099940962,0.4519,2908.9,2908.7,8.10915447]
[1764099941898,0.4527,2909.8,2908.8,1.33829001]
[1764099942096,0.4527,2909.8,2909.0,0.0525]
[1764099942462,0.4527,2909.8,2909.1,6.8749785]
[1764099943974,0.31729378,2909.7,2909.1,6.8749785]
[1764099944174,0.4519,2909.2,2909.1,3.43748925]
[1764099944604,0.4527,2909.6,2908.9,6.8754512]
[1764099946286,0.1988,2909.9,2908.9,10.3131768]
[1764099946487,0.31728413,2909.8,2908.9,10.3131768]
[1764099946717,0.76998413,2909.8,2908.9,10.3131768]
[1764099946900,0.31728413,2909.7,2908.9,10.3131768]
[1764099947519,0.76998413,2909.7,2908.9,10.3131768]
[1764099947821,0.4527,2909.7,2908.9,10.3131768]
[1764099948021,0.4527,2909.6,2908.9,6.8754512]
[1764099948416,0.4527,2909.6,2908.9,10.3131768]
[1764099948924,0.4527,2909.6,2908.9,10.3045068]
[1764099951787,0.4527,2909.6,2908.9,6.8667812]
[1764099952325,0.4527,2909.6,2908.9,10.3045068]
[1764099953122,0.4527,2909.6,2908.9,6.8667812]
[1764099953503,0.4828,2909.0,2908.9,3.4290556]
[1764099953921,0.4527,2909.6,2908.9,6.8667812]
[1764099954227,0.4527,2909.6,2908.9,10.3045068]
[1764099955721,0.4527,2909.6,2908.9,6.8667812]
[1764099956023,0.4527,2909.6,2908.9,10.3055068]
[1764099956220,0.002,2909.0,2908.9,3.4300556]
[1764099957418,0.002,2909.0,2908.9,3.4825556]
[1764099959006,0.002,2909.0,2908.9,3.4300556]
[1764099960537,0.9793,2909.0,2908.9,3.4300556]
[1764099960924,0.002,2909.0,2908.9,3.4300556]
[1764099961237,0.002,2909.0,2908.9,3.4825556]
[1764099962004,0.4866,2909.0,2908.9,3.4300556]
[1764099962433,0.002,2909.0,2908.9,3.4300556]
[1764099963116,0.4866,2909.0,2908.9,3.4300556]
[1764099963437,0.2483,2908.4,2908.1,0.001]
[1764099963638,0.2483,2908.4,2906.8,3.4401721]
[1764099963639,0.72559411,2908.1,2906.3,0.169]
[1764099963840,0.72559411,2908.1,2906.0,0.001]
[1764099963841,9.988743,2907.7,2906.0,3.44215622]
[1764099964004,0.73537175,2907.6,2906.1,0.51411037]
[1764099964338,0.22,2907.8,2906.6,13.76178352]
[1764099964644,0.22,2907.8,2906.7,0.22]
[1764099964842,0.22,2907.8,2906.8,0.4797]
[1764099965044,0.4927,2907.7,2906.7,0.22]
[1764099966553,0.4927,2907.7,2906.8,6.88041832]
[1764099967043,3.9318572,2907.7,2906.8,6.88041832]
[1764099967420,0.4927,2907.6,2906.8,6.88041832]
[1764099967825,0.4927,2907.6,2906.8,3.44020916]
[1764099968238,0.4927,2907.6,2906.8,6.88041832]
[1764099968624,0.4927,2907.6,2906.5,3.44052889]
[1764099969109,3.93201163,2907.6,2906.5,3.44052889]
[1764099969608,0.7137,2907.5,2906.4,6.88136526]
[1764099970040,0.4927,2907.4,2906.4,6.88136526]
[1764099970741,3.43961751,2907.3,2906.2,10.32275823]
[1764099971038,0.4927,2907.2,2906.2,6.88183882]
[1764099971638,0.4927,2907.2,2906.2,10.32275823]
[1764099971807,0.4927,2907.2,2906.2,6.88183882]
[1764099972016,0.4927,2907.2,2906.2,3.44091941]
[1764099972263,0.4846,2906.3,2906.0,3.44211526]
[1764099972612,0.221,2907.0,2906.2,0.4605]
[1764099972922,0.7137,2907.0,2906.3,3.44080101]
[1764099973114,4.15371298,2907.0,2906.3,3.44080101]
[1764099973308,0.4927,2906.9,2906.3,3.44080101]
[1764099973528,0.4927,2906.9,2906.3,6.88160202]
[1764099973735,0.4927,2906.9,2906.0,0.222]
[1764099973910,0.4927,2906.9,2906.1,3.4410239]
[1764099974114,0.4927,2906.9,2906.1,3.4420239]
[1764099974423,0.221,2907.0,2906.1,3.4420239]
[1764099974622,0.4927,2907.6,2906.2,0.4797]
[1764099974844,0.7137,2907.5,2906.3,10.32240303]
[1764099975064,0.7137,2907.5,2906.3,6.88160202]
[1764099975248,0.4927,2907.4,2906.3,6.88160202]
[1764099975420,0.4927,2907.4,2906.3,10.32240303]
[1764099976246,0.4927,2907.4,2906.3,6.88160202]
[1764099976444,2.27545,2907.3,2906.3,6.88160202]
[1764099976617,0.4927,2907.4,2906.3,10.32240303]
[1764099976809,0.4927,2907.5,2906.4,1.20529411]
[1764099977015,0.7137,2907.5,2906.4,1.20529411]
[1764099977323,0.002,2908.0,2907.4,0.5713]
[1764099977541,0.002,2908.0,2907.9,0.4605]
[1764099977842,0.002,2908.0,2907.9,0.9402]
[1764099978722,0.002,2908.0,2907.9,3.8994078]
[1764099978929,0.002,2908.0,2907.9,4.3791078]
[1764099979344,0.002,2908.0,2907.9,5.10470191]
[1764099980410,0.002,2908.0,2907.9,4.62500191]
[1764099981149,0.002,2908.0,2907.9,4.16450191]
[1764099981448,0.002,2908.0,2907.4,4.01004112]
[1764099981449,0.002,2908.0,2907.5,6.87876182]
[1764099981743,0.002,2908.0,2907.5,6.12876182]
[1764099982151,0.4854,2908.0,2907.5,6.12876182]
[1764099982452,0.002,2908.0,2907.5,6.12876182]
[1764099983054,0.194,2907.9,2907.5,6.12876182]
[1764099983653,0.6774,2907.9,2907.5,6.12876182]
[1764099984157,0.002,2908.0,2907.5,6.12876182]
[1764099984652,0.194,2907.9,2907.5,6.12876182]
[1764099985064,0.194,2907.9,2907.3,3.43957509]
[1764099985367,0.002,2908.0,2907.3,3.89937509]
[1764099985567,0.194,2907.9,2907.2,6.87947164]
[1764099985727,0.194,2907.9,2907.2,10.31920746]
[1764099985928,0.18536817,2907.9,2907.2,10.31920746]
[1764099986760,0.18536817,2907.9,2906.6,8.99687844]
[1764099986761,0.4952,2907.3,2906.1,6.99386535]
[1764099987059,1.29,2907.8,2906.8,6.88041832]
[1764099987222,0.4834,2907.7,2906.8,6.88041832]
[1764099988174,0.4834,2907.7,2906.8,3.44020916]
[1764099988323,0.4834,2907.7,2906.8,6.88041832]
[1764099988525,0.4834,2907.7,2906.8,3.44020916]
[1764099988753,0.4834,2907.7,2906.5,3.90024741]
[1764099989058,3.84476662,2907.6,2906.5,3.36150741]
[1764099989260,1.13109811,2907.6,2906.5,6.80207166]
[1764099989475,0.4834,2907.5,2906.5,6.80207166]
[1764099990675,0.4834,2907.5,2906.5,3.36150741]
[1764099991180,3.4394992,2907.4,2906.3,0.72559411]
[1764099991778,0.221,2907.3,2906.3,1.18539411]
[1764099991981,0.7044,2907.3,2906.3,0.72559411]
[1764099992274,0.7044,2907.3,2906.5,0.001]
[1764099992442,0.4834,2907.2,2906.5,0.001]
[1764099993474,3.43985415,2907.1,2906.5,0.001]
[1764099993884,0.4834,2907.0,2906.5,0.001]
[1764099994982,0.4952,2906.6,2906.5,0.001]
[1764099995193,0.7162,2906.6,2906.5,0.001]
[1764099995497,6.8797083,2907.1,2906.5,0.001]
[1764099995794,0.4952,2906.6,2906.5,0.001]
[1764099996162,0.9786,2906.6,2906.5,0.001]
[1764099997487,1.45721255,2908.0,2906.5,0.4719]
[1764099997660,0.4834,2907.3,2906.5,0.4719]
[1764099997865,0.221,2907.2,2906.5,0.9317]
[1764099998066,0.4834,2907.3,2906.5,0.9317]
[1764099998461,0.221,2907.2,2906.5,0.001]
[1764099998705,0.4952,2906.6,2906.5,0.001]
[1764099999209,0.4834,2907.1,2906.5,0.001]
[1764099999607,0.221,2907.0,2906.5,0.001]
[1764100000016,0.7044,2907.0,2906.5,0.001]
[1764100000306,0.4834,2907.0,2906.5,0.001]
[1764100000505,0.221,2906.9,2906.5,0.001]
[1764100000821,0.002,2908.3,2907.8,0.5903]
[1764100000974,0.002,2908.3,2907.9,0.6919]
[1764100001401,0.002,2908.3,2907.9,4.5906078]
[1764100001987,0.002,2908.3,2907.9,5.31620191]
[1764100004103,0.002,2908.3,2907.9,4.85640191]
[1764100004272,0.002,2908.3,2907.9,5.31620191]
[1764100006090,1e-08,2908.3,2907.9,5.31620191]
[1764100006295,1e-08,2908.3,2908.2,5.33286617]
[1764100006514,1e-08,2908.3,2908.2,5.79266617]
[1764100006811,1e-08,2908.3,2908.2,0.9307]
[1764100007598,1e-08,2908.3,2908.2,4.36925305]
[1764100007916,1e-08,2908.3,2908.2,3.90945305]
[1764100008116,1e-08,2908.3,2908.2,4.16414716]
[1764100009515,1e-08,2908.3,2908.2,5.09484716]
[1764100010421,1e-08,2908.3,2908.2,4.63504716]
[1764100010634,1e-08,2908.3,2908.2,4.38514716]
[1764100010928,1e-08,2908.3,2908.2,3.65955305]
[1764100012683,1e-08,2908.3,2908.2,3.43855305]
[1764100013094,0.45890001,2908.3,2908.2,3.43855305]
[1764100013491,0.95530001,2908.3,2908.2,3.43855305]
[1764100015226,1e-08,2908.3,2908.2,3.43855305]
[1764100015417,1e-08,2908.3,2908.2,4.38895305]
[1764100016014,1e-08,2908.3,2908.2,3.93275305]
[1764100017715,1e-08,2908.3,2908.2,5.11454716]
[1764100017896,1e-08,2908.3,2908.2,5.14893269]
[1764100018828,1e-08,2908.3,2908.2,5.11454716]
[1764100019201,1e-08,2908.3,2908.2,4.65834716]
[1764100019403,1e-08,2908.3,2908.2,4.87934716]
[1764100019616,1e-08,2908.3,2908.2,4.38514716]
[1764100020215,1e-08,2908.3,2908.2,4.87694716]
[1764100020424,1e-08,2908.3,2908.2,5.33984716]
[1764100020824,1e-08,2908.3,2908.2,4.87694716]
[1764100021231,1e-08,2908.3,2908.2,3.65955305]
[1764100023824,1e-08,2908.3,2908.2,0.221]
[1764100024461,1e-08,2908.3,2908.2,0.7128]
[1764100024647,0.002,2908.6,2908.3,0.405504]
[1764100024850,0.002,2908.6,2908.5,0.897304]
[1764100025051,0.002,2908.6,2908.5,1.360204]
[1764100025819,0.002,2908.6,2908.5,5.62399649]
[1764100026174,1e-08,2908.9,2908.8,0.997304]
[1764100026472,1e-08,2908.9,2908.8,1.218304]
[1764100026637,1e-08,2908.9,2908.8,1.681204]
[1764100027047,0.002,2909.0,2908.9,1.13109811]
[1764100027254,0.002,2909.0,2908.9,2.18579811]
[1764100027451,0.002,2909.0,2908.9,2.08579811]
[1764100027648,0.002,2909.0,2908.9,2.18579811]
[1764100027882,0.002,2909.0,2908.9,5.62352371]
[1764100029174,0.002,2910.4,2909.1,0.1]
[1764100029355,0.002,2910.4,2910.3,0.6401]
[1764100029688,0.002,2910.4,2910.3,0.8611]
[1764100029853,0.9691,2910.4,2910.3,4.16166599]
[1764100030054,0.9691,2910.4,2910.3,4.38266599]
[1764100030258,0.9691,2910.4,2910.3,4.16166599]
[1764100030567,0.9691,2910.4,2910.3,3.43607188]
[1764100032084,0.9691,2910.4,2910.2,0.221]
[1764100032689,0.002,2910.4,2910.2,0.221]
[1764100032863,0.002,2910.4,2910.3,0.9547]
[1764100034044,0.002,2910.4,2910.3,5.11636599]
[1764100034249,0.002,2910.4,2910.3,4.65346599]
[1764100034444,0.002,2910.4,2910.3,4.38266599]
[1764100034665,0.002,2910.4,2910.3,4.87446599]
[1764100036607,0.002,2910.4,2910.3,4.38266599]
[1764100037102,0.002,2910.4,2910.3,4.38166599]
[1764100037670,0.002,2910.4,2910.3,4.87346599]
[1764100039608,0.002,2910.4,2910.3,4.38166599]
[1764100041193,0.4784,2910.4,2910.3,4.16166599]
[1764100041370,0.9616,2910.4,2910.1,0.22]
[1764100041569,0.4832,2910.3,2910.2,3.43608748]